[Event "December 12 Early 2023"]
[Site "https://www.chess.com"]
[Date "2023.12.12"]
[Round "7"]
[White "Donskov, Anatoly"]
[Black "Petrukhina, Olga"]
[Result "1-0"]
[Board "148"]
[TimeControl "180+1"]
[WhiteFideId "24143413"]
[BlackFideId "13703935"]
[WhiteElo "2399"]
[BlackElo "2233"]
[WhiteTeam "RUS"]
[BlackTeam "KAZ"]
[WhiteClock "0:00:07"]
[BlackClock "0:00:00"]

1. e4 {[%clk 0:03:00]}  e6 {[%clk 0:02:59]} 2. d4 {[%clk 0:03:00]}  d5 {[%clk 0:02:59]} 3. Nc3 {[%clk 0:03:01]}  dxe4 {[%clk 0:02:58]} 4. Nxe4 {[%clk 0:03:01]}  Nd7 {[%clk 0:02:59]} 5. Nf3 {[%clk 0:03:00]}  Ngf6 {[%clk 0:02:59]} 6. Nxf6+ {[%clk 0:03:01]}  Nxf6 {[%clk 0:02:59]} 7. Bg5 {[%clk 0:03:01]}  h6 {[%clk 0:02:55]} 8. Bh4 {[%clk 0:03:01]}  Be7 {[%clk 0:02:37]} 9. Bc4 {[%clk 0:03:00]}  a6 {[%clk 0:02:36]} 10. Qe2 {[%clk 0:02:58]}  b5 {[%clk 0:02:36]} 11. Bd3 {[%clk 0:02:58]}  Bb7 {[%clk 0:02:37]} 12. O-O {[%clk 0:02:55]}  O-O {[%clk 0:02:34]} 13. Rad1 {[%clk 0:02:55]}  Qc8 {[%clk 0:02:30]} 14. Ne5 {[%clk 0:02:52]}  c5 {[%clk 0:02:15]} 15. dxc5 {[%clk 0:02:45]}  Qxc5 {[%clk 0:01:46]} 16. Kh1 {[%clk 0:01:48]}  Rfd8 {[%clk 0:01:36]} 17. f4 {[%clk 0:01:43]}  Nd5 {[%clk 0:01:24]} 18. Bf2 {[%clk 0:01:32]}  Qc7 {[%clk 0:01:19]} 19. Qg4 {[%clk 0:01:22]}  Bf6 {[%clk 0:01:17]} 20. c3 {[%clk 0:01:08]}  Nxf4 {[%clk 0:00:40]} 21. Bg3 {[%clk 0:00:18]}  Bxe5 {[%clk 0:00:34]} 22. Bxf4 {[%clk 0:00:17]}  Bxf4 {[%clk 0:00:34]} 23. Rxf4 {[%clk 0:00:18]}  f5 {[%clk 0:00:19]} 24. Qg3 {[%clk 0:00:11]}  Rd6 {[%clk 0:00:16]} 25. Rdf1 {[%clk 0:00:08]}  Rad8 {[%clk 0:00:15]} 26. Bc2 {[%clk 0:00:08]}  Rd2 {[%clk 0:00:14]} 27. R4f2 {[%clk 0:00:08]}  Qxg3 {[%clk 0:00:11]} 28. hxg3 {[%clk 0:00:08]}  Rxf2 {[%clk 0:00:11]} 29. Rxf2 {[%clk 0:00:09]}  Kf7 {[%clk 0:00:11]} 30. g4 {[%clk 0:00:08]}  g6 {[%clk 0:00:11]} 31. gxf5 {[%clk 0:00:08]}  exf5 {[%clk 0:00:11]} 32. Kg1 {[%clk 0:00:09]}  Kf6 {[%clk 0:00:11]} 33. Re2 {[%clk 0:00:09]}  Bd5 {[%clk 0:00:10]} 34. a3 {[%clk 0:00:08]}  Bc4 {[%clk 0:00:10]} 35. Rf2 {[%clk 0:00:06]}  Re8 {[%clk 0:00:10]} 36. g3 {[%clk 0:00:05]}  Re3 {[%clk 0:00:09]} 37. Kg2 {[%clk 0:00:05]}  Ke5 {[%clk 0:00:09]} 38. Bb1 {[%clk 0:00:02]}  Re2 {[%clk 0:00:08]} 39. Rxe2+ {[%clk 0:00:02]}  Bxe2 {[%clk 0:00:09]} 40. Kf2 {[%clk 0:00:03]}  Bc4 {[%clk 0:00:09]} 41. Ke3 {[%clk 0:00:04]}  g5 {[%clk 0:00:08]} 42. Bc2 {[%clk 0:00:04]}  Bd5 {[%clk 0:00:05]} 43. b3 {[%clk 0:00:04]}  h5 {[%clk 0:00:04]} 44. a4 {[%clk 0:00:04]}  bxa4 {[%clk 0:00:04]} 45. bxa4 {[%clk 0:00:05]}  Bc4 {[%clk 0:00:04]} 46. Kf2 {[%clk 0:00:04]}  f4 {[%clk 0:00:03]} 47. gxf4+ {[%clk 0:00:05]}  Kxf4 {[%clk 0:00:04]} 48. Bg6 {[%clk 0:00:05]}  h4 {[%clk 0:00:04]} 49. Kg1 {[%clk 0:00:06]}  g4 {[%clk 0:00:04]} 50. Kh2 {[%clk 0:00:07]}  h3 {[%clk 0:00:03]} 51. Kg1 {[%clk 0:00:08]}  g3 {[%clk 0:00:03]} 52. Bf7 {[%clk 0:00:08]}  Kg4 {[%clk 0:00:02]} 53. Bxc4 {[%clk 0:00:08]}  Kf3 {[%clk 0:00:01]} 54. Bd5+ {[%clk 0:00:08]}  Ke3 {[%clk 0:00:00]} 55. Bb7 {[%clk 0:00:07]} 1-0

[Event "December 12 Early 2023"]
[Site "https://www.chess.com"]
[Date "2023.12.12"]
[Round "7"]
[White "Balla, Tamas-Kristof"]
[Black "BestestBP"]
[Result "1-0"]
[Board "150"]
[TimeControl "180+1"]
[WhiteFideId "1208497"]
[WhiteElo "2392"]
[BlackElo "2139"]
[WhiteTeam "ROU"]
[WhiteClock "0:00:32"]
[BlackClock "0:00:05"]

1. e4 {[%clk 0:03:00]}  e5 {[%clk 0:02:57]} 2. Nf3 {[%clk 0:02:57]}  Nc6 {[%clk 0:02:56]} 3. d4 {[%clk 0:02:57]}  exd4 {[%clk 0:02:55]} 4. Nxd4 {[%clk 0:02:58]}  Nf6 {[%clk 0:02:54]} 5. Nxc6 {[%clk 0:02:58]}  bxc6 {[%clk 0:02:54]} 6. e5 {[%clk 0:02:58]}  Qe7 {[%clk 0:02:54]} 7. Qe2 {[%clk 0:02:58]}  Nd5 {[%clk 0:02:51]} 8. h4 {[%clk 0:02:59]}  a5 {[%clk 0:02:42]} 9. c4 {[%clk 0:02:48]}  Nb6 {[%clk 0:02:40]} 10. g3 {[%clk 0:02:37]}  Ba6 {[%clk 0:02:38]} 11. Nd2 {[%clk 0:02:35]}  Qe6 {[%clk 0:02:29]} 12. Bh3 {[%clk 0:02:31]}  Qe7 {[%clk 0:02:29]} 13. O-O {[%clk 0:02:29]}  h6 {[%clk 0:02:20]} 14. b3 {[%clk 0:02:28]}  O-O-O {[%clk 0:02:14]} 15. Bb2 {[%clk 0:02:25]}  Rg8 {[%clk 0:02:05]} 16. Qf3 {[%clk 0:02:24]}  Kb8 {[%clk 0:01:43]} 17. Ne4 {[%clk 0:01:51]}  Qe8 {[%clk 0:01:14]} 18. Rfd1 {[%clk 0:01:43]}  Be7 {[%clk 0:01:09]} 19. a3 {[%clk 0:01:33]}  g5 {[%clk 0:01:05]} 20. hxg5 {[%clk 0:01:27]}  hxg5 {[%clk 0:01:05]} 21. Bg2 {[%clk 0:01:13]}  g4 {[%clk 0:00:59]} 22. Qe3 {[%clk 0:01:07]}  Rg6 {[%clk 0:00:53]} 23. Nc3 {[%clk 0:00:58]}  Bg5 {[%clk 0:00:35]} 24. Qe4 {[%clk 0:00:51]}  Bb7 {[%clk 0:00:31]} 25. c5 {[%clk 0:00:50]}  Nd5 {[%clk 0:00:29]} 26. Nxd5 {[%clk 0:00:50]}  cxd5 {[%clk 0:00:30]} 27. Qd4 {[%clk 0:00:50]}  f6 {[%clk 0:00:25]} 28. Bxd5 {[%clk 0:00:45]}  fxe5 {[%clk 0:00:25]} 29. Qe4 {[%clk 0:00:40]}  Bxd5 {[%clk 0:00:14]} 30. Rxd5 {[%clk 0:00:41]}  Rc6 {[%clk 0:00:10]} 31. Rxe5 {[%clk 0:00:39]}  Qg8 {[%clk 0:00:10]} 32. b4 {[%clk 0:00:37]}  Bf6 {[%clk 0:00:10]} 33. b5 {[%clk 0:00:30]}  Bxe5 {[%clk 0:00:06]} 34. bxc6 {[%clk 0:00:28]}  Bxb2 {[%clk 0:00:05]} 35. Rb1 {[%clk 0:00:28]}  Qa2 {[%clk 0:00:03]} 36. Qc2 {[%clk 0:00:27]}  dxc6 {[%clk 0:00:02]} 37. Rxb2+ {[%clk 0:00:28]}  Qxb2 {[%clk 0:00:02]} 38. Qxb2+ {[%clk 0:00:29]}  Kc8 {[%clk 0:00:02]} 39. Qc3 {[%clk 0:00:29]}  Rd5 {[%clk 0:00:02]} 40. Qxa5 {[%clk 0:00:29]}  Kd7 {[%clk 0:00:02]} 41. Qb4 {[%clk 0:00:29]}  Ke6 {[%clk 0:00:02]} 42. a4 {[%clk 0:00:29]}  Ke5 {[%clk 0:00:02]} 43. a5 {[%clk 0:00:30]}  Rd4 {[%clk 0:00:03]} 44. Qb2 {[%clk 0:00:30]}  Kd5 {[%clk 0:00:03]} 45. Qxd4+ {[%clk 0:00:30]}  Kxd4 {[%clk 0:00:04]} 46. a6 {[%clk 0:00:31]}  Kxc5 {[%clk 0:00:04]} 47. a7 {[%clk 0:00:32]}  Kd4 {[%clk 0:00:05]} 48. a8=Q {[%clk 0:00:33]}  c5 {[%clk 0:00:06]} 49. Qa4+ {[%clk 0:00:33]}  c4 {[%clk 0:00:06]} 50. Qc6 {[%clk 0:00:33]}  c3 {[%clk 0:00:05]} 51. Qxc7 {[%clk 0:00:34]}  Kd3 {[%clk 0:00:06]} 52. Kf1 {[%clk 0:00:34]}  Kc2 {[%clk 0:00:05]} 53. Ke2 {[%clk 0:00:33]}  Kb2 {[%clk 0:00:05]} 54. Kd3 {[%clk 0:00:34]}  c2 {[%clk 0:00:06]} 55. Qxc2+ {[%clk 0:00:34]}  Ka1 {[%clk 0:00:06]} 56. Qc5 {[%clk 0:00:31]}  Kb2 {[%clk 0:00:06]} 57. Qb5+ {[%clk 0:00:31]}  Ka1 {[%clk 0:00:05]} 58. Kc2 {[%clk 0:00:31]}  Ka2 {[%clk 0:00:05]} 59. Qa5# {[%clk 0:00:32]} 1-0

[Event "December 12 Early 2023"]
[Site "https://www.chess.com"]
[Date "2023.12.12"]
[Round "7"]
[White "Topalov, Aleksandar"]
[Black "Negron Lizarazo, Juan Sebastian"]
[Result "1-0"]
[Board "151"]
[TimeControl "180+1"]
[WhiteFideId "925659"]
[BlackFideId "3936910"]
[WhiteElo "2370"]
[BlackElo "2138"]
[WhiteTeam "SRB"]
[BlackTeam "COL"]
[WhiteClock "0:02:20"]
[BlackClock "0:00:47"]

1. b3 {[%clk 0:03:00]}  e5 {[%clk 0:02:57]} 2. Bb2 {[%clk 0:03:00]}  d6 {[%clk 0:02:58]} 3. d4 {[%clk 0:03:00]}  exd4 {[%clk 0:02:54]} 4. Qxd4 {[%clk 0:02:59]}  Nf6 {[%clk 0:02:53]} 5. Nc3 {[%clk 0:02:57]}  Nc6 {[%clk 0:02:54]} 6. Qf4 {[%clk 0:02:55]}  Be7 {[%clk 0:02:51]} 7. O-O-O {[%clk 0:02:53]}  Be6 {[%clk 0:02:44]} 8. Nf3 {[%clk 0:02:53]}  Qd7 {[%clk 0:02:42]} 9. e4 {[%clk 0:02:51]}  O-O-O {[%clk 0:02:31]} 10. Nd5 {[%clk 0:02:49]}  Bxd5 {[%clk 0:02:16]} 11. exd5 {[%clk 0:02:49]}  Nb8 {[%clk 0:02:09]} 12. Bd3 {[%clk 0:02:46]}  Nxd5 {[%clk 0:01:46]} 13. Qxf7 {[%clk 0:02:44]}  Rdf8 {[%clk 0:01:32]} 14. Qxd5 {[%clk 0:02:42]}  c6 {[%clk 0:01:26]} 15. Qa5 {[%clk 0:02:34]}  b6 {[%clk 0:01:22]} 16. Qe1 {[%clk 0:02:23]}  c5 {[%clk 0:01:02]} 17. Kb1 {[%clk 0:02:21]}  Rhg8 {[%clk 0:00:47]} 18. Bc4 {[%clk 0:02:20]} 1-0

[Event "December 12 Early 2023"]
[Site "https://www.chess.com"]
[Date "2023.12.12"]
[Round "7"]
[White "Koridze, Lile"]
[Black "Sailer, Mike"]
[Result "0-1"]
[Board "152"]
[TimeControl "180+1"]
[WhiteFideId "13612514"]
[BlackFideId "2012901"]
[WhiteElo "2368"]
[BlackElo "2060"]
[WhiteTeam "GEO"]
[BlackTeam "USA"]
[WhiteClock "0:02:16"]
[BlackClock "0:02:12"]

1. d4 {[%clk 0:03:00]}  d5 {[%clk 0:02:59]} 2. c4 {[%clk 0:02:59]}  Bf5 {[%clk 0:02:59]} 3. Nc3 {[%clk 0:02:59]}  e6 {[%clk 0:02:59]} 4. Nf3 {[%clk 0:02:58]}  Bb4 {[%clk 0:02:57]} 5. e3 {[%clk 0:02:48]}  Nf6 {[%clk 0:02:52]} 6. Bd2 {[%clk 0:02:40]}  O-O {[%clk 0:02:49]} 7. Be2 {[%clk 0:02:40]}  a6 {[%clk 0:02:42]} 8. O-O {[%clk 0:02:40]}  dxc4 {[%clk 0:02:34]} 9. Bxc4 {[%clk 0:02:36]}  Bd6 {[%clk 0:02:29]} 10. h3 {[%clk 0:02:34]}  h6 {[%clk 0:02:28]} 11. Qe2 {[%clk 0:02:33]}  Ne4 {[%clk 0:02:25]} 12. Nxe4 {[%clk 0:02:32]}  Bxe4 {[%clk 0:02:25]} 13. Bc3 {[%clk 0:02:31]}  b5 {[%clk 0:02:23]} 14. Bd3 {[%clk 0:02:31]}  Bxd3 {[%clk 0:02:22]} 15. Qxd3 {[%clk 0:02:32]}  c5 {[%clk 0:02:21]} 16. dxc5 {[%clk 0:02:31]}  Bh2+ {[%clk 0:02:20]} 17. Nxh2 {[%clk 0:02:23]}  Qxd3 {[%clk 0:02:21]} 18. Rad1 {[%clk 0:02:22]}  Qc4 {[%clk 0:02:16]} 19. Bd4 {[%clk 0:02:16]}  Qxa2 {[%clk 0:02:12]} 0-1

[Event "December 12 Early 2023"]
[Site "https://www.chess.com"]
[Date "2023.12.12"]
[Round "7"]
[White "Skiadopoulos, Nikolaos"]
[Black "Zaksaite, Salomeja"]
[Result "0-1"]
[Board "153"]
[TimeControl "180+1"]
[WhiteFideId "4200772"]
[BlackFideId "12801496"]
[WhiteElo "1747"]
[BlackElo "2368"]
[WhiteTeam "GRE"]
[BlackTeam "LTU"]
[WhiteClock "0:00:05"]
[BlackClock "0:00:22"]

1. e4 {[%clk 0:02:55]}  e6 {[%clk 0:02:58]} 2. d4 {[%clk 0:02:53]}  d5 {[%clk 0:02:55]} 3. e5 {[%clk 0:02:51]}  Bd7 {[%clk 0:02:51]} 4. Nf3 {[%clk 0:02:50]}  a6 {[%clk 0:02:51]} 5. Bd3 {[%clk 0:02:49]}  Bb5 {[%clk 0:02:51]} 6. O-O {[%clk 0:02:42]}  Bxd3 {[%clk 0:02:43]} 7. cxd3 {[%clk 0:02:40]}  Ne7 {[%clk 0:02:40]} 8. Bg5 {[%clk 0:02:39]}  h6 {[%clk 0:02:39]} 9. Bh4 {[%clk 0:02:35]}  Qd7 {[%clk 0:02:39]} 10. Nc3 {[%clk 0:02:29]}  Nf5 {[%clk 0:02:37]} 11. Bg3 {[%clk 0:02:26]}  Nc6 {[%clk 0:02:36]} 12. Ne2 {[%clk 0:02:24]}  g5 {[%clk 0:02:35]} 13. h3 {[%clk 0:02:17]}  Be7 {[%clk 0:02:33]} 14. Bh2 {[%clk 0:02:16]}  h5 {[%clk 0:02:33]} 15. g4 {[%clk 0:02:12]}  hxg4 {[%clk 0:02:33]} 16. hxg4 {[%clk 0:02:12]}  Nh4 {[%clk 0:02:33]} 17. Nxh4 {[%clk 0:02:10]}  Rxh4 {[%clk 0:02:34]} 18. Bg3 {[%clk 0:02:10]}  Rxg4 {[%clk 0:02:32]} 19. f3 {[%clk 0:01:49]}  Rxg3+ {[%clk 0:02:24]} 20. Nxg3 {[%clk 0:01:49]}  Nxd4 {[%clk 0:02:25]} 21. f4 {[%clk 0:01:37]}  O-O-O {[%clk 0:02:06]} 22. f5 {[%clk 0:01:33]}  Bc5 {[%clk 0:02:03]} 23. Kg2 {[%clk 0:01:31]}  exf5 {[%clk 0:02:01]} 24. Rc1 {[%clk 0:01:06]}  Bb6 {[%clk 0:01:56]} 25. b4 {[%clk 0:01:00]}  f4 {[%clk 0:01:55]} 26. Nh5 {[%clk 0:00:59]}  Nf5 {[%clk 0:01:42]} 27. Rf3 {[%clk 0:00:40]}  Nh4+ {[%clk 0:01:39]} 28. Kh2 {[%clk 0:00:40]}  Rh8 {[%clk 0:01:34]} 29. Rh3 {[%clk 0:00:35]}  f3 {[%clk 0:01:21]} 30. Rxh4 {[%clk 0:00:22]}  gxh4 {[%clk 0:01:14]} 31. Qxf3 {[%clk 0:00:21]}  Qe6 {[%clk 0:01:03]} 32. Re1 {[%clk 0:00:13]}  Qh6 {[%clk 0:00:48]} 33. Nf6 {[%clk 0:00:13]}  Kb8 {[%clk 0:00:25]} 34. Re2 {[%clk 0:00:11]}  h3 {[%clk 0:00:24]} 35. Ng4 {[%clk 0:00:08]}  Qc1 {[%clk 0:00:22]} 36. Qxf7 {[%clk 0:00:05]}  Qg1# {[%clk 0:00:22]} 0-1

[Event "December 12 Early 2023"]
[Site "https://www.chess.com"]
[Date "2023.12.12"]
[Round "7"]
[White "Donatti, Alvaro"]
[Black "Kotlyar, Kirill"]
[Result "0-1"]
[Board "154"]
[TimeControl "180+1"]
[WhiteFideId "3000303"]
[BlackFideId "24145599"]
[WhiteElo "2051"]
[BlackElo "2545"]
[WhiteTeam "URU"]
[BlackTeam "RUS"]
[WhiteClock "0:00:00"]
[BlackClock "0:00:46"]

1. e4 {[%clk 0:03:00]}  e5 {[%clk 0:02:14]} 2. Nf3 {[%clk 0:02:59]}  Nc6 {[%clk 0:02:14]} 3. Bb5 {[%clk 0:02:58]}  a6 {[%clk 0:02:15]} 4. Ba4 {[%clk 0:02:58]}  Nf6 {[%clk 0:02:15]} 5. O-O {[%clk 0:02:57]}  Be7 {[%clk 0:02:15]} 6. Re1 {[%clk 0:02:54]}  b5 {[%clk 0:02:16]} 7. Bb3 {[%clk 0:02:53]}  O-O {[%clk 0:02:16]} 8. a4 {[%clk 0:02:53]}  b4 {[%clk 0:02:16]} 9. c3 {[%clk 0:02:52]}  d6 {[%clk 0:02:15]} 10. d4 {[%clk 0:02:51]}  exd4 {[%clk 0:02:11]} 11. cxd4 {[%clk 0:02:51]}  Bg4 {[%clk 0:02:11]} 12. Bg5 {[%clk 0:02:26]}  Bxf3 {[%clk 0:02:08]} 13. gxf3 {[%clk 0:02:24]}  Rb8 {[%clk 0:02:08]} 14. Kh1 {[%clk 0:02:18]}  Nh5 {[%clk 0:02:06]} 15. Be3 {[%clk 0:02:16]}  Bg5 {[%clk 0:02:05]} 16. Rg1 {[%clk 0:02:14]}  Bf4 {[%clk 0:02:04]} 17. Rg4 {[%clk 0:02:08]}  Qf6 {[%clk 0:01:59]} 18. Nd2 {[%clk 0:02:04]}  Nxd4 {[%clk 0:01:50]} 19. Bc4 {[%clk 0:01:53]}  c5 {[%clk 0:01:43]} 20. Bxa6 {[%clk 0:01:42]}  g6 {[%clk 0:01:35]} 21. Bc4 {[%clk 0:01:28]}  Kh8 {[%clk 0:01:32]} 22. a5 {[%clk 0:01:16]}  Ra8 {[%clk 0:01:26]} 23. a6 {[%clk 0:01:10]}  Ra7 {[%clk 0:01:16]} 24. Kg2 {[%clk 0:00:52]}  Ne6 {[%clk 0:01:11]} 25. Qb3 {[%clk 0:00:43]}  Be5 {[%clk 0:01:10]} 26. Bxe6 {[%clk 0:00:32]}  fxe6 {[%clk 0:01:09]} 27. Ra5 {[%clk 0:00:19]}  Bxb2 {[%clk 0:01:06]} 28. Bh6 {[%clk 0:00:14]}  Ng7 {[%clk 0:01:04]} 29. Bg5 {[%clk 0:00:13]}  Qc3 {[%clk 0:01:00]} 30. Qxc3 {[%clk 0:00:11]}  bxc3 {[%clk 0:00:56]} 31. Nc4 {[%clk 0:00:11]}  d5 {[%clk 0:00:53]} 32. Nd6 {[%clk 0:00:10]}  c2 {[%clk 0:00:51]} 33. Nb5 {[%clk 0:00:10]}  Raa8 {[%clk 0:00:51]} 34. a7 {[%clk 0:00:07]}  Rfc8 {[%clk 0:00:49]} 35. Nd6 {[%clk 0:00:06]}  Rc7 {[%clk 0:00:47]} 36. Nb5 {[%clk 0:00:02]}  Rb7 {[%clk 0:00:47]} 37. exd5 {[%clk 0:00:01]}  exd5 {[%clk 0:00:47]} 38. Rf4 {[%clk 0:00:00]}  c1=Q {[%clk 0:00:46]} 0-1

[Event "December 12 Early 2023"]
[Site "https://www.chess.com"]
[Date "2023.12.12"]
[Round "7"]
[White "Saim, Mohamed Ilias"]
[Black "Jakubowska, Anna"]
[Result "0-1"]
[Board "160"]
[TimeControl "180+1"]
[WhiteFideId "7900465"]
[BlackFideId "1121952"]
[WhiteElo "2054"]
[BlackElo "2338"]
[WhiteTeam "ALG"]
[BlackTeam "POL"]
[WhiteClock "0:01:22"]
[BlackClock "0:01:39"]

1. c4 {[%clk 0:02:59]}  e5 {[%clk 0:02:59]} 2. g3 {[%clk 0:02:59]}  Nc6 {[%clk 0:02:59]} 3. Bg2 {[%clk 0:03:00]}  g6 {[%clk 0:02:58]} 4. Nc3 {[%clk 0:03:00]}  Bg7 {[%clk 0:02:57]} 5. e4 {[%clk 0:03:01]}  d6 {[%clk 0:02:56]} 6. Nge2 {[%clk 0:03:01]}  h5 {[%clk 0:02:56]} 7. d3 {[%clk 0:02:59]}  h4 {[%clk 0:02:56]} 8. Be3 {[%clk 0:02:50]}  hxg3 {[%clk 0:02:49]} 9. hxg3 {[%clk 0:02:48]}  Rxh1+ {[%clk 0:02:50]} 10. Bxh1 {[%clk 0:02:48]}  Bg4 {[%clk 0:02:48]} 11. Qa4 {[%clk 0:02:38]}  Qd7 {[%clk 0:02:41]} 12. O-O-O {[%clk 0:02:36]}  Nd4 {[%clk 0:02:36]} 13. Qxd7+ {[%clk 0:02:19]}  Kxd7 {[%clk 0:02:37]} 14. Rd2 {[%clk 0:02:07]}  Ne7 {[%clk 0:02:18]} 15. Bxd4 {[%clk 0:02:00]}  exd4 {[%clk 0:02:18]} 16. Nd5 {[%clk 0:02:00]}  Rh8 {[%clk 0:02:09]} 17. Bg2 {[%clk 0:01:41]}  Rh2 {[%clk 0:02:05]} 18. f3 {[%clk 0:01:35]}  Rxg2 {[%clk 0:01:54]} 19. fxg4 {[%clk 0:01:35]}  Nxd5 {[%clk 0:01:43]} 20. cxd5 {[%clk 0:01:31]}  Bh6 {[%clk 0:01:43]} 21. Nf4 {[%clk 0:01:30]}  Rxg3 {[%clk 0:01:41]} 22. Rf2 {[%clk 0:01:22]}  Rxg4 {[%clk 0:01:39]} 0-1

[Event "December 12 Early 2023"]
[Site "https://www.chess.com"]
[Date "2023.12.12"]
[Round "7"]
[White "Veiga, Jose Francisco R P Neves"]
[Black "Quirke, Jeffrey"]
[Result "0-1"]
[Board "161"]
[TimeControl "180+1"]
[WhiteFideId "1930087"]
[BlackFideId "2013029"]
[WhiteElo "2559"]
[BlackElo "2155"]
[WhiteTeam "POR"]
[BlackTeam "USA"]
[WhiteClock "0:00:09"]
[BlackClock "0:00:06"]

1. c4 {[%clk 0:03:00]}  Nf6 {[%clk 0:02:57]} 2. Nc3 {[%clk 0:03:00]}  g6 {[%clk 0:02:56]} 3. g3 {[%clk 0:02:58]}  Bg7 {[%clk 0:02:55]} 4. Bg2 {[%clk 0:02:59]}  O-O {[%clk 0:02:52]} 5. e4 {[%clk 0:02:59]}  e5 {[%clk 0:02:50]} 6. Nge2 {[%clk 0:02:58]}  d6 {[%clk 0:02:49]} 7. O-O {[%clk 0:02:57]}  Nc6 {[%clk 0:02:48]} 8. Rb1 {[%clk 0:02:55]}  a5 {[%clk 0:02:47]} 9. a3 {[%clk 0:02:54]}  Nh5 {[%clk 0:02:38]} 10. b4 {[%clk 0:02:50]}  axb4 {[%clk 0:02:38]} 11. axb4 {[%clk 0:02:51]}  f5 {[%clk 0:02:23]} 12. d3 {[%clk 0:02:50]}  f4 {[%clk 0:02:21]} 13. f3 {[%clk 0:02:48]}  fxg3 {[%clk 0:02:20]} 14. hxg3 {[%clk 0:02:49]}  Rf7 {[%clk 0:02:01]} 15. Be3 {[%clk 0:02:48]}  Qf8 {[%clk 0:02:00]} 16. Nd5 {[%clk 0:02:28]}  Nd8 {[%clk 0:02:00]} 17. b5 {[%clk 0:02:26]}  Ne6 {[%clk 0:01:58]} 18. Kh2 {[%clk 0:02:15]}  Bh6 {[%clk 0:01:46]} 19. Qd2 {[%clk 0:02:06]}  Bxe3 {[%clk 0:01:45]} 20. Qxe3 {[%clk 0:02:07]}  Ra2 {[%clk 0:01:30]} 21. Rf2 {[%clk 0:02:03]}  g5 {[%clk 0:01:02]} 22. Ndc3 {[%clk 0:02:01]}  Rc2 {[%clk 0:00:56]} 23. d4 {[%clk 0:01:49]}  Qh6 {[%clk 0:00:53]} 24. Kg1 {[%clk 0:01:48]}  exd4 {[%clk 0:00:38]} 25. Nxd4 {[%clk 0:01:47]}  Rxf2 {[%clk 0:00:37]} 26. Kxf2 {[%clk 0:01:46]}  Nxg3 {[%clk 0:00:27]} 27. Ra1 {[%clk 0:01:09]}  Qh4 {[%clk 0:00:21]} 28. Kg1 {[%clk 0:01:08]}  Nf4 {[%clk 0:00:16]} 29. Ra8 {[%clk 0:01:02]}  Rf8 {[%clk 0:00:16]} 30. Qf2 {[%clk 0:00:39]}  Bh3 {[%clk 0:00:16]} 31. Rxf8+ {[%clk 0:00:38]}  Kxf8 {[%clk 0:00:15]} 32. Nde2 {[%clk 0:00:11]}  Ngxe2+ {[%clk 0:00:11]} 33. Nxe2 {[%clk 0:00:09]}  Qxf2+ {[%clk 0:00:11]} 34. Kxf2 {[%clk 0:00:10]}  Nxg2 {[%clk 0:00:10]} 35. Kg3 {[%clk 0:00:08]}  Nf4 {[%clk 0:00:10]} 36. Nxf4 {[%clk 0:00:07]}  gxf4+ {[%clk 0:00:08]} 37. Kxh3 {[%clk 0:00:07]}  Kf7 {[%clk 0:00:05]} 38. Kg4 {[%clk 0:00:08]}  Kf6 {[%clk 0:00:06]} 39. Kxf4 {[%clk 0:00:09]}  h5 {[%clk 0:00:04]} 40. Kg3 {[%clk 0:00:06]}  Ke5 {[%clk 0:00:02]} 41. Kh4 {[%clk 0:00:04]}  Kf4 {[%clk 0:00:02]} 42. Kxh5 {[%clk 0:00:04]}  Kxf3 {[%clk 0:00:03]} 43. Kg6 {[%clk 0:00:05]}  Kxe4 {[%clk 0:00:03]} 44. Kf6 {[%clk 0:00:06]}  Kd4 {[%clk 0:00:04]} 45. Ke7 {[%clk 0:00:07]}  Kxc4 {[%clk 0:00:04]} 46. Kd7 {[%clk 0:00:08]}  Kxb5 {[%clk 0:00:05]} 47. Kxc7 {[%clk 0:00:09]}  d5 {[%clk 0:00:05]} 48. Kd6 {[%clk 0:00:09]}  d4 {[%clk 0:00:06]} 0-1

[Event "December 12 Early 2023"]
[Site "https://www.chess.com"]
[Date "2023.12.12"]
[Round "7"]
[White "ArrestingPieces"]
[Black "Hartikainen, Jarmo"]
[Result "1-0"]
[Board "162"]
[TimeControl "180+1"]
[BlackFideId "503134"]
[WhiteElo "2491"]
[BlackElo "2121"]
[BlackTeam "FIN"]
[WhiteClock "0:00:45"]
[BlackClock "0:00:17"]

1. e4 {[%clk 0:03:00]}  d5 {[%clk 0:03:00]} 2. exd5 {[%clk 0:03:00]}  Nf6 {[%clk 0:02:57]} 3. c4 {[%clk 0:03:00]}  c6 {[%clk 0:02:55]} 4. d4 {[%clk 0:02:59]}  cxd5 {[%clk 0:02:55]} 5. Nc3 {[%clk 0:03:00]}  g6 {[%clk 0:02:53]} 6. Qb3 {[%clk 0:02:59]}  Bg7 {[%clk 0:02:50]} 7. cxd5 {[%clk 0:02:59]}  O-O {[%clk 0:02:48]} 8. Be2 {[%clk 0:02:59]}  b6 {[%clk 0:02:35]} 9. Bf3 {[%clk 0:02:55]}  Bb7 {[%clk 0:02:30]} 10. Nge2 {[%clk 0:02:54]}  Na6 {[%clk 0:02:15]} 11. O-O {[%clk 0:02:53]}  e6 {[%clk 0:01:33]} 12. Nf4 {[%clk 0:02:23]}  exd5 {[%clk 0:01:29]} 13. Nfxd5 {[%clk 0:02:17]}  Nxd5 {[%clk 0:01:29]} 14. Nxd5 {[%clk 0:02:10]}  Nc7 {[%clk 0:01:08]} 15. Nxc7 {[%clk 0:01:33]}  Qxc7 {[%clk 0:01:09]} 16. Bxb7 {[%clk 0:01:32]}  Qxb7 {[%clk 0:01:10]} 17. Be3 {[%clk 0:01:33]}  Rad8 {[%clk 0:01:08]} 18. Rfd1 {[%clk 0:01:32]}  Qd5 {[%clk 0:01:07]} 19. Qxd5 {[%clk 0:01:30]}  Rxd5 {[%clk 0:01:07]} 20. Rd3 {[%clk 0:01:31]}  Rfd8 {[%clk 0:01:07]} 21. Rad1 {[%clk 0:01:32]}  f5 {[%clk 0:01:01]} 22. f3 {[%clk 0:01:31]}  Kf7 {[%clk 0:00:55]} 23. b3 {[%clk 0:01:30]}  Ke6 {[%clk 0:00:54]} 24. Kf2 {[%clk 0:01:29]}  Rc8 {[%clk 0:00:52]} 25. Re1 {[%clk 0:01:20]}  Kd7 {[%clk 0:00:42]} 26. Red1 {[%clk 0:01:13]}  h6 {[%clk 0:00:40]} 27. h4 {[%clk 0:01:02]}  Rc2+ {[%clk 0:00:39]} 28. R1d2 {[%clk 0:01:01]}  Rxd2+ {[%clk 0:00:39]} 29. Rxd2 {[%clk 0:01:00]}  Kc6 {[%clk 0:00:23]} 30. Ke2 {[%clk 0:00:59]}  Kb5 {[%clk 0:00:22]} 31. Kd3 {[%clk 0:00:59]}  a5 {[%clk 0:00:19]} 32. Rc2 {[%clk 0:00:52]}  Rd7 {[%clk 0:00:17]} 33. Rc8 {[%clk 0:00:50]}  a4 {[%clk 0:00:17]} 34. bxa4+ {[%clk 0:00:47]}  Kxa4 {[%clk 0:00:18]} 35. Rc6 {[%clk 0:00:47]}  b5 {[%clk 0:00:18]} 36. Ra6+ {[%clk 0:00:44]}  Kb4 {[%clk 0:00:17]} 37. Bd2# {[%clk 0:00:45]} 1-0